fUSD/lending_fUSD_20250417
["ID","MTS","AMOUNT","RATE_DAILY","PERIOD"]
[358237102,1744863056305,-154.51759917,0.00052055,2]
[358237103,1744863056314,-500.0,0.00052055,2]
[358237104,1744863056324,-150.0,0.00052055,2]
[358237105,1744863056334,-2508.0,0.00052055,2]
[358237106,1744863056343,-500.0,0.00052055,2]
[358237107,1744863056352,-500.0,0.00052055,2]
[358237108,1744863056361,-500.0,0.00052055,2]
[358237109,1744863056371,-500.0,0.00052055,2]
[358237110,1744863056379,-150.0,0.00052055,2]
[358237111,1744863056387,-150.0,0.00052055,2]
[358237112,1744863056396,-150.0,0.00052055,2]
[358237113,1744863056405,-500.0,0.00052055,2]
[358237114,1744863056414,-500.0,0.00052055,2]
[358237115,1744863056423,-150.0,0.00052055,2]
[358237116,1744863056432,-150.0,0.00052055,2]
[358237117,1744863056441,-215.56486319,0.00052055,2]
[358237118,1744863056450,-150.0,0.00052055,2]
[358237119,1744863056460,-150.0,0.00052062,30]
[358237120,1744863056469,-183.68092461,0.00052073,10]
[358237121,1744863056477,-500.0,0.00052073,10]
[358237122,1744863056486,-154.09431904,0.00052073,10]
[358237123,1744863056495,-500.0,0.00052073,10]
[358237124,1744863056503,-162.55590316,0.00052073,10]
[358237125,1744863056511,-410.69189255,0.00052073,10]
[358237126,1744863056519,-500.0,0.00052073,10]
[358237127,1744863056528,-161.06709779,0.00052073,10]
[358237128,1744863056536,-161.53439543,0.00052073,10]
[358237129,1744863056545,-154.04077659,0.00052073,10]
[358237130,1744863056553,-500.0,0.00052073,10]
[358237131,1744863056561,-507.08460579,0.00052073,2]
[358237132,1744863056570,-320.03033813,0.00052073,10]
[358237133,1744863056578,-156.30721759,0.00052073,10]
[358237134,1744863056587,-450.40369245,0.00052073,10]
[358237135,1744863056595,-153.31469753,0.00052073,10]
[358237136,1744863056604,-331.01334453,0.00052073,2]
[358237137,1744863056612,-160.667246,0.00052073,120]
[358237138,1744863056621,-160.667246,0.00052073,120]
[358237139,1744863056630,-461.029798,0.00052073,120]
[358237140,1744863056638,-461.029798,0.00052073,120]
[358237141,1744863056647,-150.5,0.00052088,120]
[358237142,1744863056655,-150.5,0.00052098,120]
[358237143,1744863056664,-150.5,0.00052108,120]
[358237144,1744863056673,-8679.86369135,0.00052111,15]
[358237145,1744863056682,-160.65,0.00052118,30]
[358237146,1744863056692,-160.65,0.00052118,30]
[358237147,1744863056701,-160.65,0.00052118,30]
[358237148,1744863056710,-160.65,0.00052118,30]
[358237149,1744863056719,-160.65,0.00052118,30]
[358237150,1744863056727,-160.65,0.00052118,30]
[358237151,1744863056736,-160.65,0.00052118,30]
[358237152,1744863056745,-160.65,0.00052118,30]
[358237153,1744863056754,-160.65,0.00052118,30]
[358237154,1744863056763,-151.0,0.00052118,120]
[358237155,1744863056772,-4292.94430749,0.00052119,15]
[358237156,1744863056781,-150.0,0.00052125,30]
[358237157,1744863056790,-150.0,0.00052125,30]
[358237158,1744863056799,-150.0,0.00052125,30]
[358237159,1744863056807,-150.0,0.00052125,30]
[358237160,1744863056816,-195.0,0.00052179,2]
[358237161,1744863056824,-1416.174,0.00052179,120]
[358237162,1744863056833,-2047.0,0.00052179,120]
[358237163,1744863056841,-1451.938,0.00052179,120]
[358237164,1744863056850,-795.0,0.00052179,2]
[358237165,1744863056858,-908.0,0.00052179,120]
[358237166,1744863056867,-1280.0,0.00052179,120]
[358237167,1744863056875,-1438.0,0.00052179,120]
[358237168,1744863056884,-545.0,0.00052179,120]
[358237169,1744863056892,-4165.009,0.00052179,120]
[358237170,1744863056898,-578.135,0.00052179,120]
[358237171,1744863056905,-151.0,0.00052189,120]
[358237172,1744863056912,-206.351618,0.00052189,120]
[358237173,1744863056919,-206.351618,0.00052189,120]
[358237174,1744863056925,-1317.176512,0.00052189,120]
[358237175,1744863056932,-1317.176512,0.00052189,120]
[358237176,1744863056941,-441.0,0.000522,120]
[358237177,1744863056949,-428.9,0.00052221,120]
[358237178,1744863056958,-556.52777398,0.00052228,2]
[358237179,1744863056967,-12916.27702044,0.00052228,2]
[358237180,1744863056977,-468.67585287,0.00052228,2]
[358237181,1744863056989,-150.0,0.00052237,7]
[358237182,1744863056999,-8679.86369135,0.00052245,15]
[358237183,1744863057009,-4292.94430749,0.00052252,15]
[358237184,1744863057018,-150.0,0.00052274,7]
[358237185,1744863057029,-151.0,0.00052286,120]
[358237186,1744863057039,-151.0,0.00052286,120]
[358237187,1744863057049,-151.0,0.00052287,120]
[358237188,1744863057060,-151.0,0.00052287,120]
[358237189,1744863057070,-151.0,0.00052287,120]
[358237190,1744863057080,-151.0,0.00052287,120]
[358237191,1744863057089,-151.0,0.00052287,120]
[358237192,1744863057098,-297.235052,0.00052287,120]
[358237193,1744863057106,-155.568167,0.00052287,120]
[358237194,1744863057115,-151.0,0.00052287,120]
[358237195,1744863057124,-151.0,0.00052287,120]
[358237196,1744863057133,-166.497512,0.00052287,120]
[358237197,1744863057141,-166.497512,0.00052287,120]
[358237198,1744863057150,-2077.814045,0.00052287,120]
[358237199,1744863057159,-209.422012,0.00052287,120]
[358237200,1744863057167,-209.422012,0.00052287,120]
[358237201,1744863057175,-151.0,0.00052287,120]
[358237202,1744863057185,-150.0,0.00052288,7]
[358237203,1744863057193,-114898.64842755,0.00052293,2]
[358237204,1744863057629,-571.02940977,0.00052293,2]
[358237205,1744863057641,-600.0,0.00052293,2]
[358237206,1744863058223,-150.0,0.00051923,2]
[358237207,1744863058429,-173.47798851,0.00052054,120]
[358237208,1744863058634,-326.52201149,0.00052054,120]
[358237209,1744863058644,-23440.32156248,0.00052293,2]
[358237210,1744863058653,-6599.2749955,0.00052293,2]
[358237211,1744863058663,-18456.1386849,0.00052293,2]
[358237212,1744863058673,-518.271579,0.00052301,120]
[358237213,1744863058682,-518.271579,0.00052301,120]
[358237214,1744863058693,-151.0,0.00052301,120]
[358237215,1744863058703,-151.0,0.00052301,120]
[358237216,1744863058712,-151.0,0.00052301,120]
[358237217,1744863058721,-860.712396,0.00052301,120]
[358237218,1744863058731,-860.712396,0.00052301,120]
[358237219,1744863058739,-151.0,0.00052301,120]
[358237220,1744863058748,-151.0,0.00052301,120]
[358237221,1744863058758,-195.426473,0.00052301,120]
[358237222,1744863058767,-195.426473,0.00052301,120]
[358237223,1744863058777,-151.0,0.00052301,120]
[358237224,1744863058786,-151.0,0.00052301,120]
[358237225,1744863058795,-430.967672,0.00052301,120]
[358237226,1744863058804,-430.967672,0.00052301,120]
[358237227,1744863058814,-412.376175,0.00052301,120]
[358237228,1744863058823,-412.376175,0.00052301,120]
[358237229,1744863058832,-242.836489,0.00052301,120]
[358237230,1744863058841,-242.836489,0.00052301,120]
[358237231,1744863058849,-151.0,0.00052301,120]
[358237232,1744863058858,-35182.36224688,0.00052301,120]
[358237233,1744863058870,-7592.63775312,0.00052301,120]
[358237234,1744863058879,-175.0,0.00052306,120]
[358237235,1744863058888,-93.36224688,0.00052306,120]
[358237237,1744863591799,-151.05,0.00024932,2]
[358237238,1744863684999,250.0,0.00017,2]
[358237239,1744863686069,300.0,0.00019,2]
[358237240,1744863688181,-188.711269,0.00021,2]
[358237241,1744863691951,-161.288731,0.00021,2]
[358237242,1744863691974,-138.711269,0.00023,2]
[358237243,1744864020529,-200.0,0.00024,5]
[358237244,1744864032126,-261.288731,0.00023,2]
[358237245,1744864032149,-564.13789674,0.00024,5]
[358237246,1744864042078,-1144.1055851,0.00024,5]
[358237247,1744864121957,3885.11,0.000151,2]
[358237267,1744864232297,-1230.37145169,0.00024,5]
[358237327,1744864238491,-1655.02,0.00024,5]
[358237328,1744864238656,-206.36962302,0.00024,5]
[358237329,1744864238666,-599.999999,0.0002488,7]
[358237330,1744864238676,-450.0,0.00025,2]
[358237331,1744864238686,-150.14937798,0.00025,7]
[358237334,1744864240521,-22.96768502,0.00025,7]
[358237335,1744864240531,-500.0,0.00027,2]
[358237336,1744864240541,-156.50081375,0.00027,2]
[358237337,1744864240551,-550.0,0.00029,2]
[358237338,1744864240560,-157.5530901,0.0003,20]
[358237339,1744864240570,-158.04,0.0003,2]
[358237340,1744864240579,-151.05,0.00030829,2]
[358237341,1744864240588,-613.70311639,0.0003133,2]
[358237342,1744864240598,-171.39,0.00032877,30]
[358237343,1744864240607,-154.15,0.000335,31]
[358237344,1744864240616,-154.15,0.000335,31]
[358237345,1744864240626,-154.15,0.000335,31]
[358237346,1744864240636,-151.05,0.00036727,2]
[358237347,1744864240645,-206.0,0.0003863,2]
[358237348,1744864240655,-206.0,0.0004037,2]
[358237349,1744864240664,-300.0,0.00040799,5]
[358237350,1744864240674,-154.15,0.000408,31]
[358237351,1744864240683,-154.15,0.000408,31]
[358237352,1744864240692,-154.15,0.000408,31]
[358237353,1744864240702,-154.15,0.000408,31]
[358237354,1744864240711,-154.15,0.000408,31]
[358237355,1744864240720,-154.15,0.000408,31]
[358237356,1744864240730,-206.0,0.0004211,2]
[358237357,1744864240739,-171.39,0.00042369,30]
[358237358,1744864240748,-151.05,0.00042624,2]
[358237359,1744864240758,-4151.65706801,0.0004321,2]
[358237360,1744864240770,-2173.15304755,0.0004321,2]
[358237361,1744864240781,-1274.50333856,0.0004321,2]
[358237362,1744864240846,-1147.43589917,0.0004321,2]
[358237363,1744864240858,-5276.98416779,0.0004321,2]
[358237364,1744864240868,-206.0,0.0004385,30]
[358237365,1744864240878,-551.3156304,0.00044147,30]
[358237366,1744864240888,-485.0,0.00044169,4]
[358237367,1744864240897,-1097.28772181,0.0004417,120]
[358237368,1744864240906,-150.0,0.0004417,2]
[358237369,1744864240916,-4600.52147812,0.0004417,120]
[358237370,1744864240926,-150.1,0.0004417,120]
[358237371,1744864240935,-2101.85,0.0004417,120]
[358237372,1744864240944,-7112.06388536,0.0004417,2]
[358237373,1744864240954,-34802.84338895,0.0004417,7]
[358237374,1744864240963,-917.98524945,0.0004417,3]
[358237375,1744864240972,-2049.33415164,0.0004417,3]
[358237376,1744864240981,-1106.30344565,0.0004417,2]
[358237377,1744864240990,-8463.69389547,0.0004417,30]
[358237378,1744864241000,-500.0,0.000442,10]
[358237379,1744864241009,-500.0,0.000442,10]
[358237380,1744864241018,-181.78338067,0.000442,10]
[358237381,1744864241027,-206.0,0.0004559,30]
[358237382,1744864241038,-422.7,0.0004669,2]
[358237383,1744864241047,-150.32,0.00046748,2]
[358237384,1744864241056,-206.0,0.0004733,30]
[358237385,1744864241065,-509.4,0.00048094,2]
[358237386,1744864241074,-154.15,0.000481,45]
[358237387,1744864241084,-154.15,0.000481,45]
[358237388,1744864241095,-154.15,0.000481,45]
[358237389,1744864241104,-154.15,0.000481,45]
[358237390,1744864241114,-154.15,0.000481,45]
[358237391,1744864241123,-154.15,0.000481,45]
[358237392,1744864241132,-23900.0,0.00048113,2]
[358237393,1744864241141,-1000.0,0.00048124,2]
[358237394,1744864241151,-1003.03,0.00048131,2]
[358237395,1744864241160,-151.05,0.00048522,2]
[358237396,1744864241169,-845.39,0.00048685,2]
[358237397,1744864241179,-206.0,0.0004907,30]
[358237398,1744864241189,-2000.0,0.000493,2]
[358237399,1744864241200,-440.0,0.0004937,2]
[358237400,1744864241210,-1014.0323261,0.00049417,4]
[358237401,1744864241220,-372.91,0.00049631,120]
[358237402,1744864241229,-171.71893617,0.00049679,10]
[358237403,1744864241237,-1000.0,0.00049679,10]
[358237404,1744864241246,-1836.0,0.000498,7]
[358237405,1744864241255,-150.0,0.00049858,7]
[358237406,1744864241264,-371.71,0.00049876,120]
[358237407,1744864241274,-1328.43918311,0.0005,90]
[358237408,1744864241284,-150.32,0.00050702,120]
[358237409,1744864241293,-206.0,0.0005081,30]
[358237410,1744864241302,-150.0,0.00050866,7]
[358237411,1744864241310,-3805.87,0.0005094,2]
[358237412,1744864241318,-845.39,0.00050949,2]
[358237413,1744864241328,-150.0,0.00050951,7]
[358237414,1744864241337,-200.0,0.000517,18]
[358237415,1744864241347,-500.0,0.000518,18]
[358237416,1744864241358,-171.39,0.00051862,30]
[358237417,1744864241368,-224.6048,0.000519,2]
[358237418,1744864241378,-521.3916,0.000519,2]
[358237419,1744864241387,-700.0,0.000519,18]
[358237420,1744864241401,-842.0564,0.000519,2]
[358237421,1744864241411,-2110.0,0.00051924,30]
[358237422,1744864241420,-966.559,0.00051929,94]
[358237423,1744864241430,-153.0,0.0005193,60]
[358237424,1744864241441,-153.0,0.0005193,60]
[358237425,1744864241450,-153.0,0.0005193,60]
[358237426,1744864241460,-153.0,0.0005193,60]
[358237427,1744864241471,-153.0,0.0005193,60]
[358237428,1744864241481,-153.0,0.0005193,60]
[358237429,1744864241490,-153.0,0.0005193,60]
[358237430,1744864241500,-153.0,0.0005193,60]
[358237431,1744864241509,-153.0,0.0005193,60]
[358237432,1744864241518,-153.0,0.0005193,60]
[358237433,1744864241527,-153.0,0.0005193,60]
[358237434,1744864241537,-153.0,0.0005193,60]
[358237435,1744864241546,-153.0,0.0005193,60]
[358237436,1744864241555,-153.0,0.0005193,60]
[358237437,1744864241564,-153.0,0.0005193,60]
[358237438,1744864241574,-153.0,0.0005193,60]
[358237439,1744864241583,-153.0,0.0005193,60]
[358237440,1744864241594,-153.0,0.0005193,60]
[358237441,1744864241603,-153.0,0.0005193,60]
[358237442,1744864241613,-153.0,0.0005193,60]
[358237443,1744864241622,-153.0,0.0005193,60]
[358237444,1744864241631,-153.0,0.0005193,60]
[358237445,1744864241640,-153.0,0.0005193,60]
[358237446,1744864241650,-153.0,0.0005193,60]
[358237447,1744864241659,-153.0,0.0005193,60]
[358237448,1744864241668,-153.0,0.0005193,60]
[358237449,1744864241677,-153.0,0.0005193,60]
[358237450,1744864241687,-153.0,0.0005193,60]
[358237451,1744864241696,-153.0,0.0005193,60]
[358237452,1744864241705,-153.0,0.0005193,60]
[358237453,1744864241715,-153.0,0.0005193,60]
[358237454,1744864241724,-153.0,0.0005193,60]
[358237455,1744864241733,-153.0,0.0005193,60]
[358237456,1744864241742,-153.0,0.0005193,60]
[358237457,1744864241752,-153.0,0.0005193,60]
[358237458,1744864241761,-153.0,0.0005193,60]
[358237459,1744864241771,-153.0,0.0005193,60]
[358237460,1744864241780,-153.0,0.0005193,60]
[358237461,1744864241790,-153.0,0.0005193,60]
[358237462,1744864241800,-153.0,0.0005193,60]
[358237463,1744864241809,-153.0,0.0005193,60]
[358237464,1744864241818,-153.0,0.0005193,60]
[358237465,1744864241827,-153.0,0.0005193,60]
[358237466,1744864241837,-153.0,0.0005193,60]
[358237467,1744864241847,-153.0,0.0005193,60]
[358237468,1744864241856,-153.0,0.0005193,60]
[358237469,1744864241866,-153.0,0.0005193,60]
[358237470,1744864241876,-153.0,0.0005193,60]
[358237471,1744864241885,-153.0,0.0005193,60]
[358237472,1744864241895,-153.0,0.0005193,60]
[358237473,1744864241905,-153.0,0.0005193,60]
[358237474,1744864241914,-153.0,0.0005193,60]
[358237475,1744864241923,-153.0,0.0005193,60]
[358237476,1744864241933,-153.0,0.0005193,60]
[358237477,1744864241942,-153.0,0.0005193,60]
[358237478,1744864241952,-153.0,0.0005193,60]
[358237479,1744864241961,-160.35,0.00051934,30]
[358237480,1744864241971,-213.0,0.00051944,2]
[358237481,1744864241981,-59699.8654,0.00051944,2]
[358237482,1744864241992,-14735.4196,0.00051944,2]
[358237483,1744864242003,-1000.0,0.00051954,2]
[358237484,1744864242014,-1000.0,0.00051954,2]
[358237485,1744864242023,-1582.1747,0.00051954,2]
[358237486,1744864242035,-1708.0505736,0.00051954,24]
[358237487,1744864242047,-182.45447947,0.00051954,31]
[358237488,1744864242056,-151.0,0.00051977,120]
[358237489,1744864242067,-151.0,0.00051977,120]
[358237490,1744864242078,-16897.3802798,0.00052,4]
[358237491,1744864242089,-2162.0,0.00052,120]
[358237492,1744864242100,-2000.0,0.00052,120]
[358237493,1744864242108,-693.58394987,0.00052,30]
[358237494,1744864242117,-525.73,0.00052014,2]
[358237495,1744864242126,-500.0,0.00052032,120]
[358237496,1744864242135,-242.2,0.00052033,120]
[358237497,1744864242145,-3097.74620604,0.00052034,4]
[358237498,1744864242154,-160.35,0.00052034,30]
[358237499,1744864242163,-160.35,0.00052034,30]
[358237500,1744864242173,-525.73,0.00052034,2]
[358237501,1744864242183,-15488.7310302,0.00052035,4]
[358237502,1744864242443,-114616.609623,0.00052044,4]
[358237503,1744864242454,-124090.768435,0.00052044,4]
[358237504,1744864242466,-151.0,0.00052044,120]
[358237505,1744864242481,-151.0,0.00052044,120]
[358237506,1744864242492,-13787.8631594,0.00052045,4]
[358237507,1744864242503,-150.1,0.00052045,4]
[358237508,1744864242512,-500.0,0.00052054,120]
[358237509,1744864242522,-500.0,0.00052054,120]
[358237510,1744864242531,-151.0,0.00052054,120]
[358237511,1744864242540,-151.0,0.00052054,120]
[358237512,1744864242550,-151.0,0.00052054,120]
[358237513,1744864242560,-151.0,0.00052054,120]
[358237514,1744864242570,-503.36742057,0.00052054,120]
[358237515,1744864242580,-690.88,0.00052054,120]
[358237516,1744864242590,-151.0,0.00052054,120]
[358237517,1744864242600,-151.0,0.00052054,120]
[358237518,1744864242609,-151.0,0.00052054,120]
[358237519,1744864242619,-151.0,0.00052054,120]
[358237520,1744864242630,-1259.58,0.00052054,120]
[358237521,1744864242640,-151.0,0.00052054,120]
[358237522,1744864242651,-274.418506,0.00052054,120]
[358237523,1744864242662,-510.73057018,0.00052054,120]
[358237524,1744864242672,-500.0,0.00052054,120]
[358237525,1744864242682,-500.0,0.00052054,120]
[358237526,1744864242691,-1045.51,0.00052054,120]
[358237527,1744864242700,-500.0,0.00052054,120]
[358237528,1744864242710,-614.13120668,0.00052054,120]
[358237529,1744864242720,-1014.53,0.00052054,120]
[358237530,1744864242729,-225.345594,0.00052054,120]
[358237531,1744864242738,-500.0,0.00052054,120]
[358237532,1744864242747,-488.271961,0.00052054,120]
[358237533,1744864242756,-168.462309,0.00052054,120]
[358237534,1744864242765,-1667.66,0.00052054,120]
[358237535,1744864242775,-500.0,0.00052054,120]
[358237536,1744864242783,-528.78,0.00052054,120]
[358237537,1744864242792,-500.0,0.00052054,120]
[358237538,1744864242801,-500.0,0.00052054,120]
[358237539,1744864242810,-500.0,0.00052054,120]
[358237540,1744864242819,-500.0,0.00052054,120]
[358237541,1744864242828,-500.0,0.00052054,120]
[358237542,1744864242837,-500.0,0.00052054,120]
[358237543,1744864242846,-500.0,0.00052054,120]
[358237544,1744864242856,-500.0,0.00052054,120]
[358237545,1744864242865,-500.0,0.00052054,120]
[358237546,1744864242874,-504.0901111,0.00052054,120]
[358237547,1744864242883,-500.0,0.00052054,120]
[358237548,1744864242891,-500.0,0.00052054,120]
[358237549,1744864242900,-500.0,0.00052054,120]
[358237550,1744864242910,-275.93909192,0.00052054,120]
[358237551,1744864242918,-500.0,0.00052054,120]
[358237552,1744864242927,-500.0,0.00052054,120]
[358237553,1744864242937,-1274.53,0.00052054,120]
[358237554,1744864242947,-500.0,0.00052054,120]
[358237555,1744864242956,-500.0,0.00052054,120]
[358237556,1744864242965,-500.0,0.00052054,120]
[358237557,1744864242974,-500.0,0.00052054,120]
[358237558,1744864242983,-543.22,0.00052054,14]
[358237559,1744864242992,-536.8733054,0.00052054,120]
[358237560,1744864243001,-359.69960649,0.00052054,120]
[358237561,1744864243010,-500.0,0.00052054,120]
[358237562,1744864243020,-595.91,0.00052054,120]
[358237563,1744864243029,-500.0,0.00052054,120]
[358237564,1744864243038,-500.63,0.00052054,120]
[358237565,1744864243047,-500.0,0.00052054,120]
[358237566,1744864243057,-500.0,0.00052054,120]
[358237567,1744864243066,-500.0,0.00052054,120]
[358237568,1744864243075,-500.0,0.00052054,120]
[358237569,1744864243086,-500.0,0.00052054,120]
[358237570,1744864243095,-500.0,0.00052054,120]
[358237571,1744864243104,-500.0,0.00052054,120]
[358237572,1744864243113,-500.0,0.00052054,120]
[358237573,1744864243122,-500.0,0.00052054,120]
[358237574,1744864243131,-500.0,0.00052054,120]
[358237575,1744864243141,-500.0,0.00052054,120]
[358237576,1744864243150,-500.0,0.00052054,120]
[358237577,1744864243159,-500.0,0.00052054,120]
[358237578,1744864243168,-500.0,0.00052054,120]
[358237579,1744864243178,-500.0,0.00052054,120]
[358237580,1744864243187,-500.0,0.00052054,14]
[358237581,1744864243196,-500.0,0.00052054,120]
[358237582,1744864243206,-500.0,0.00052054,120]
[358237583,1744864243215,-500.0,0.00052054,120]
[358237585,1744864243225,-918.09,0.00052054,120]
[358237586,1744864243234,-500.0,0.00052054,120]
[358237587,1744864243244,-500.0,0.00052054,120]
[358237588,1744864243253,-500.0,0.00052054,120]
[358237589,1744864243262,-500.0,0.00052054,120]
[358237591,1744864243272,-500.0,0.00052054,120]
[358237593,1744864243281,-500.0,0.00052054,120]
[358237595,1744864243291,-500.0,0.00052054,120]
[358237597,1744864243300,-2475.73,0.00052054,120]
[358237599,1744864243309,-500.0,0.00052054,120]
[358237600,1744864243319,-500.0,0.00052054,120]
[358237601,1744864243328,-574.3,0.00052054,120]
[358237602,1744864243337,-500.0,0.00052054,120]
[358237603,1744864243347,-811.86,0.00052054,120]
[358237604,1744864243355,-500.0,0.00052054,120]
[358237605,1744864243365,-531.92,0.00052054,120]
[358237606,1744864243374,-500.0,0.00052054,120]
[358237607,1744864243383,-500.0,0.00052054,120]
[358237608,1744864243393,-500.0,0.00052054,120]
[358237609,1744864243405,-500.0,0.00052054,120]
[358237610,1744864243415,-500.0,0.00052054,120]
[358237611,1744864243424,-500.0,0.00052054,120]
[358237612,1744864243434,-500.0,0.00052054,120]
[358237613,1744864243444,-660.08,0.00052054,120]
[358237614,1744864243454,-500.0,0.00052054,120]
[358237615,1744864243463,-1966.31,0.00052054,120]
[358237616,1744864243475,-500.0,0.00052054,120]
[358237617,1744864243485,-500.0,0.00052054,120]
[358237618,1744864243495,-505.27,0.00052054,120]
[358237619,1744864243504,-308.01229418,0.00052054,120]
[358237620,1744864243514,-500.0,0.00052054,120]
[358237621,1744864243524,-500.0,0.00052054,120]
[358237622,1744864243533,-500.0,0.00052054,120]
[358237623,1744864243543,-500.0,0.00052054,120]
[358237624,1744864243553,-500.0,0.00052054,120]
[358237625,1744864243564,-560.26,0.00052054,120]
[358237626,1744864243574,-500.0,0.00052054,120]
[358237627,1744864243583,-2082.25,0.00052054,120]
[358237628,1744864243593,-500.0,0.00052054,120]
[358237629,1744864243602,-658.23,0.00052054,120]
[358237630,1744864243612,-500.0,0.00052054,120]
[358237631,1744864243621,-500.0,0.00052054,120]
[358237632,1744864243631,-570.29900027,0.00052054,120]
[358237633,1744864243640,-793.68,0.00052054,120]
[358237634,1744864243650,-500.0,0.00052054,120]
[358237635,1744864243659,-500.0,0.00052054,120]
[358237636,1744864243669,-500.0,0.00052054,7]
[358237637,1744864243679,-1234.83,0.00052054,120]
[358237638,1744864243688,-500.0,0.00052054,120]
[358237639,1744864243698,-585.75,0.00052054,120]
[358237640,1744864243707,-473.95491367,0.00052054,120]
[358237641,1744864243718,-500.0,0.00052054,120]
[358237642,1744864243728,-676.24,0.00052054,120]
[358237643,1744864243738,-500.0,0.00052054,120]
[358237644,1744864243748,-2197.77,0.00052054,120]
[358237645,1744864243758,-500.0,0.00052054,120]
[358237646,1744864243768,-500.0,0.00052054,120]
[358237647,1744864243778,-500.0,0.00052054,120]
[358237648,1744864243788,-500.0,0.00052054,120]
[358237649,1744864243798,-1894.03,0.00052054,120]
[358237650,1744864243807,-500.0,0.00052054,120]
[358237651,1744864243816,-500.0,0.00052054,120]
[358237652,1744864243826,-1328.21,0.00052054,120]
[358237653,1744864243834,-554.43946847,0.00052054,120]
[358237654,1744864243844,-500.0,0.00052054,120]
[358237655,1744864243853,-3015.06,0.00052054,120]
[358237656,1744864243862,-519.65691792,0.00052054,120]
[358237657,1744864243872,-500.0,0.00052054,120]
[358237658,1744864243881,-500.0,0.00052054,120]
[358237659,1744864243891,-500.0,0.00052054,120]
[358237660,1744864243900,-500.0,0.00052054,120]
[358237661,1744864243910,-500.0,0.00052054,120]
[358237662,1744864243919,-503.82960482,0.00052054,120]
[358237663,1744864243929,-2620.48,0.00052054,120]
[358237664,1744864243938,-500.0,0.00052054,120]
[358237665,1744864243947,-500.0,0.00052054,120]
[358237666,1744864243957,-500.0,0.00052054,120]
[358237667,1744864243967,-623.13809268,0.00052054,120]
[358237668,1744864243977,-627.28,0.00052054,120]
[358237669,1744864243986,-500.0,0.00052054,120]
[358237670,1744864243995,-653.1,0.00052054,120]
[358237671,1744864244005,-500.0,0.00052054,120]
[358237672,1744864244014,-300.0,0.00052054,120]
[358237673,1744864244024,-1392.42,0.00052054,120]
[358237674,1744864244033,-1246.67,0.00052054,120]
[358237675,1744864244043,-1870.11,0.00052054,120]
[358237676,1744864244052,-589.22,0.00052054,120]
[358237677,1744864244062,-1073.97,0.00052054,120]
[358237678,1744864244071,-500.0,0.00052054,120]
[358237679,1744864244080,-1000.0,0.00052054,120]
[358237680,1744864244089,-500.0,0.00052054,120]
[358237681,1744864244099,-500.0,0.00052054,120]
[358237682,1744864244108,-500.0,0.00052054,120]
[358237683,1744864244118,-1743.3,0.00052054,120]
[358237684,1744864244127,-500.0,0.00052054,120]
[358237685,1744864244137,-500.0,0.00052054,120]
[358237686,1744864244147,-500.0,0.00052054,120]
[358237687,1744864244156,-500.0,0.00052054,120]
[358237688,1744864244166,-500.0,0.00052054,120]